bitfinex/quotes_ETHUSD_20251226
["timestamp","ask_amount","ask_price","bid_price","bid_amount"]
[1766719833122,0.002,2964.5,2963.9,1.9168]
[1766719833323,0.002,2964.5,2964.1,1.9168]
[1766719838157,1.96824455,2964.4,2963.8,0.884]
[1766719838357,1.96824455,2964.4,2963.7,2.8008]
[1766719838562,2.16526901,2964.4,2963.7,2.8008]
[1766719839148,2.16526901,2964.4,2963.8,1.9168]
[1766719839352,1.96824455,2964.4,2963.8,1.95054046]
[1766719839755,1.96824455,2964.4,2963.8,1.9168]
[1766719841372,1.9581,2964.4,2963.8,1.95054046]
[1766719841867,0.01214455,2964.5,2963.8,1.95054046]
[1766719842178,1.829,2964.6,2963.9,2.8883]
[1766719842383,1.829,2964.6,2964.0,2.0043]
[1766719842952,1.829,2964.6,2964.1,2.8883]
[1766719845794,0.002,2964.7,2964.1,2.8883]
[1766719846688,0.002,2964.7,2964.2,1.8755]
[1766719847167,0.002,2964.6,2964.2,1.8755]
[1766719849603,0.002,2964.7,2964.2,1.8755]
[1766719849962,0.01214455,2964.7,2964.2,1.8755]
[1766719850608,3.38520505,2964.7,2964.2,1.8755]
[1766719850908,6.25559642,2964.7,2964.2,1.8755]
[1766719851091,2.88253592,2964.7,2964.2,1.8755]
[1766719851261,1.89484455,2964.7,2964.2,1.8755]
[1766719853186,5.2678941,2964.7,2964.2,1.8755]
[1766719853522,1.8847,2964.7,2964.2,1.8755]
[1766719853685,0.002,2964.7,2964.3,0.03373477]
[1766719853995,0.002,2964.7,2964.3,1.8755]
[1766719854200,0.002,2964.7,2964.3,2.15482359]
[1766719857123,0.01214455,2964.9,2964.4,1.8755]
[1766719859616,3.38495515,2964.9,2964.3,0.03373477]
[1766719859826,1.8827,2964.8,2964.2,0.03373591]
[1766719860213,1.89284455,2964.7,2964.2,0.884]
[1766719860827,0.01014455,2964.5,2964.1,0.884]
[1766719861328,1.89284455,2964.7,2964.1,0.884]
[1766719862103,1.89284455,2964.7,2964.1,2.7595]
[1766719862934,1.89284455,2964.7,2964.1,2.7605]
[1766719863134,1.89284455,2964.7,2964.2,0.03373591]
[1766719863439,1.89284455,2964.7,2964.1,2.7605]
[1766719863839,1.89284455,2964.7,2964.2,0.03373591]
[1766719864141,1.8827,2964.7,2964.2,0.03373591]
[1766719864438,0.002,2965.1,2964.6,1.8755]
[1766719864627,0.002,2965.1,2964.7,0.884]
[1766719865031,0.002,2965.1,2964.6,1.8755]
[1766719865227,1.8827,2965.0,2964.4,0.884]
[1766719865435,2.07218446,2965.0,2964.4,0.884]
[1766719865744,1.8827,2964.9,2964.4,0.884]
[1766719866736,1.8807,2964.9,2964.3,0.884]
[1766719868520,0.19962901,2965.0,2964.4,1.8755]
[1766719871241,0.002,2964.9,2964.4,1.8755]
[1766719871646,0.002,2964.9,2964.4,1.90923363]
[1766719872546,0.002,2964.9,2964.4,0.03373363]
[1766719876165,0.002,2964.9,2964.5,4.0107528]
[1766719876336,0.002,2964.9,2964.5,0.0337325]
[1766719877979,0.002,2964.9,2964.5,0.884]
[1766719878182,0.002,2964.9,2964.4,0.884]
[1766719878387,0.002,2964.9,2964.5,0.0337325]
[1766719878944,0.002,2964.9,2964.5,1.71092138]
[1766719879278,0.002,2964.9,2964.5,0.884]
[1766719883083,0.002,2964.9,2964.6,0.03373136]
[1766719884582,0.002,2964.9,2964.5,0.9177325]
[1766719884874,0.002,2964.9,2964.5,0.884]
[1766719885178,0.002,2964.9,2964.6,0.03373136]
[1766719885977,0.002,2964.9,2964.5,0.884]
[1766719887062,0.002,2964.9,2964.6,0.03373136]
[1766719887971,0.002,2964.9,2964.5,1.71192308]
[1766719889676,0.002,2964.9,2964.5,0.82792308]
[1766719889866,0.002,2964.9,2964.6,0.884]
[1766719890074,0.002,2964.9,2964.5,0.001]
[1766719890275,3.98716485,2964.6,2963.2,3.37471161]
[1766719890483,0.01014455,2964.8,2963.1,4.8620203]
[1766719890484,0.89414455,2964.8,2963.1,4.8620203]
[1766719890799,0.89414455,2964.8,2963.7,3.9770203]
[1766719890800,1.28291649,2964.8,2963.7,3.9770203]
[1766719891090,7.75871531,2964.7,2963.5,3.9770203]
[1766719891292,7.75871531,2964.7,2963.6,0.03374274]
[1766719891583,3.9770203,2964.5,2963.3,0.001]
[1766719891752,3.9770203,2964.1,2963.3,0.001]
[1766719892483,0.13504366,2964.0,2963.3,0.001]
[1766719892679,0.13504366,2964.0,2963.4,3.9770203]
[1766719892982,0.884,2964.6,2963.5,0.03374388]
[1766719893183,6.74672782,2964.4,2963.5,0.03374388]
[1766719893350,1.01271121,2964.3,2963.4,0.03374502]
[1766719894156,1.01271121,2964.3,2963.3,0.03474616]
[1766719894475,1.01271121,2964.3,2963.4,0.884]
[1766719894675,1.01271121,2964.3,2963.5,1.85464388]
[1766719894847,0.7759439,2964.2,2963.5,1.8209]
[1766719895051,2.7288439,2964.2,2963.5,1.8209]
[1766719895984,6.10254552,2964.2,2963.5,1.8209]
[1766719896783,1.9529,2964.1,2963.4,0.001]
[1766719896963,1.9529,2964.0,2963.4,0.001]
[1766719897156,1.9529,2964.0,2963.4,1.8219]
[1766719897794,1.9529,2964.0,2963.4,0.001]
[1766719898198,3.37392163,2964.0,2963.4,0.001]
[1766719898384,2.39517979,2963.9,2963.4,0.001]
[1766719898708,2.39517979,2963.9,2963.4,1.8219]
[1766719899074,2.39517979,2963.9,2963.1,0.001]
[1766719899276,1.9529,2963.7,2962.6,1.8209]
[1766719899479,1.9529,2963.6,2962.6,1.8209]
[1766719899780,1.9529,2963.6,2962.6,1.8199]
[1766719900197,3.98845549,2963.7,2962.3,1.8209]
[1766719900198,1.9529,2963.2,2962.3,1.8209]
[1766719900408,1.9529,2963.0,2962.0,1.8159]
[1766719900587,1.9529,2962.8,2961.9,0.001]
[1766719901290,1.9529,2962.8,2961.9,1.8219]
[1766719901491,1.9529,2962.6,2961.9,0.001]
[1766719902121,1.8675,2962.4,2961.9,0.001]
[1766719902421,5.53145044,2962.3,2961.9,0.001]
[1766719902724,1.8675,2962.2,2961.9,0.001]
[1766719904991,1.7471,2962.1,2961.5,0.001]
[1766719908328,1.01334062,2962.5,2961.8,3.98378376]
[1766719908512,0.33932553,2963.7,2962.4,3.98378376]
[1766719908513,3.37464766,2963.3,2962.4,3.98378376]
[1766719908727,1.7471,2963.1,2962.4,4.01754017]
[1766719909115,1.7471,2963.1,2962.4,5.78184017]
[1766719909419,1.7471,2963.1,2962.4,1.7643]
[1766719909620,1.7471,2963.1,2962.4,2.6483]
[1766719909821,1.7471,2963.1,2962.5,0.03375527]
[1766719910130,1.7471,2963.1,2962.4,2.91313]
[1766719910724,1.7471,2962.9,2961.9,2.16267838]
[1766719910905,1.7471,2962.9,2962.0,0.884]
[1766719911094,1.75724455,2962.9,2961.7,1.7643]
[1766719911292,1.75724455,2962.9,2961.8,0.884]
[1766719911490,1.7471,2962.7,2961.7,1.7643]
[1766719911689,1.7471,2962.7,2961.8,0.91776325]
[1766719912235,1.7471,2962.7,2961.8,0.91676325]
[1766719912865,1.7471,2962.3,2961.5,0.001]
[1766719913040,10.17014839,2962.6,2961.5,0.001]
[1766719913041,1.7471,2962.1,2961.5,0.001]
[1766719913359,1.7808634,2962.0,2961.5,0.001]
[1766719915025,1.7808634,2962.0,2961.5,0.03476667]
[1766719915864,0.0337634,2962.0,2961.5,1.79906667]
[1766719916066,1.7471,2962.2,2961.5,1.79906667]
[1766719916287,3.40958293,2962.3,2961.5,1.79906667]
[1766719916288,1.7808634,2962.1,2961.5,1.79906667]
[1766719918193,1.7471,2962.0,2961.5,0.001]
[1766719918470,1.7808634,2961.9,2961.5,0.001]
[1766719921508,0.0337634,2961.9,2961.5,1.7653]
[1766719921789,3.37554535,2962.5,2961.5,1.7653]
[1766719921790,1.7471,2962.6,2961.7,1.7643]
[1766719922092,0.0337634,2962.5,2961.9,1.7643]
[1766719922265,0.0337634,2962.5,2961.6,0.884]
[1766719922266,0.0337634,2962.5,2962.0,1.79806097]
[1766719922466,1.7471,2962.9,2962.0,0.03376097]
[1766719922763,1.7471,2963.2,2962.1,1.7643]
[1766719922959,1.7471,2963.2,2962.3,1.7643]
[1766719923169,1.7471,2963.5,2962.5,1.7643]
[1766719923498,1.7471,2963.5,2962.7,1.7643]
[1766719923674,1.7471,2963.5,2962.9,1.7643]
[1766719924555,1.7471,2963.4,2962.6,0.884]
[1766719924890,3.88653885,2963.5,2962.0,0.884]
[1766719924891,1.7471,2963.2,2962.0,0.884]
[1766719925071,1.7471,2963.2,2961.9,0.884]
[1766719925072,1.75724455,2963.1,2961.9,0.884]
[1766719925258,1.75724455,2963.1,2961.7,0.884]
[1766719925259,1.7471,2962.9,2961.7,0.884]
[1766719925459,1.75724455,2962.9,2961.7,0.884]
[1766719925670,1.75724455,2962.9,2961.7,2.6483]
[1766719926169,1.75724455,2962.9,2961.8,1.7643]
[1766719926471,1.7471,2962.6,2961.6,0.884]
[1766719926690,1.7471,2962.4,2961.6,0.884]
[1766719926991,1.7471,2962.4,2961.8,0.001]
[1766719927368,5.1227543,2962.4,2961.8,0.001]
[1766719928096,1.7471,2962.3,2961.8,0.001]
[1766719928886,3.37555016,2962.5,2961.8,1.7653]
[1766719929084,0.84980794,2962.4,2961.8,1.7653]
[1766719930392,1.7471,2962.6,2961.8,1.7653]
[1766719930591,6.7512062,2962.5,2961.8,1.7653]
[1766719930794,3.3756031,2962.5,2961.8,1.7653]
[1766719930964,3.37544826,2962.6,2961.8,1.7653]
[1766719931394,5.12254826,2962.6,2961.8,1.7653]
[1766719931721,3.88789509,2962.5,2961.8,1.7653]
[1766719933135,3.37503714,2963.0,2961.9,1.79806211]
[1766719933428,3.37503714,2963.0,2961.9,1.7643]
[1766719933429,5.12213714,2963.0,2961.9,1.7643]
[1766719933585,3.37503714,2963.0,2961.9,1.7643]
[1766719933788,6.74957978,2963.2,2962.1,1.7643]
[1766719934821,3.37475333,2963.2,2962.1,1.7643]
[1766719935034,0.002,2963.5,2962.3,1.3678]
[1766719935331,3.37638943,2963.5,2962.5,1.3678]
[1766719935522,6.75077886,2963.5,2962.7,1.3678]
[1766719935729,8.12707886,2963.5,2962.7,1.3678]
[1766719935908,1.3763,2963.4,2962.2,2.2518]
[1766719936225,1.15014683,2963.3,2962.3,1.3678]
[1766719936591,1.3763,2963.2,2962.3,1.3678]
[1766719938132,8.12598782,2963.1,2962.3,1.3678]
[1766719938498,6.74968782,2963.1,2962.3,1.3678]
[1766719938708,1.3763,2963.0,2962.3,1.3678]
[1766719938919,2.18889878,2963.0,2962.3,1.3678]
[1766719939337,1.3763,2962.9,2962.3,1.3678]
[1766719940210,4.75148563,2962.8,2962.0,0.884]
[1766719940402,4.75148563,2962.8,2962.1,1.3678]
[1766719940403,1.3763,2962.7,2962.1,1.3678]
[1766719940604,2.18896713,2962.7,2961.8,0.001]
[1766719940789,1.3763,2962.7,2961.9,2.2518]
[1766719940995,1.3763,2962.7,2962.0,1.3678]
[1766719943459,3.37516096,2962.9,2962.0,1.3678]
[1766719943751,3.37516096,2962.9,2962.2,1.3678]
[1766719943972,0.55660597,2962.8,2962.2,1.3678]
[1766719946240,2.19089878,2963.0,2962.3,0.03375755]
[1766719946538,4.75329678,2963.0,2962.3,1.3678]
[1766719947243,8.12829356,2963.0,2962.3,1.3678]
[1766719947432,4.75329678,2963.0,2962.3,1.3678]
[1766719947928,1.3763,2962.9,2962.3,1.3678]
[1766719948122,1.3763,2962.9,2961.9,1.3678]
[1766719948328,1.3763,2962.7,2962.0,0.884]
[1766719948916,1.3763,2962.7,2962.0,2.2518]
[1766719950041,4.75162081,2962.7,2962.0,1.3678]
[1766719955355,1.3763,2962.6,2961.9,0.884]
[1766719955724,1.3763,2962.6,2961.9,2.2518]
[1766719956450,1.3763,2962.6,2961.9,0.884]
[1766719956750,1.3763,2962.6,2962.0,1.3678]
[1766719958951,1.3763,2962.6,2962.0,1.3688]
[1766719960552,4.75172435,2962.6,2962.0,1.3688]
[1766719960753,0.2563992,2962.0,2961.8,1.3688]
[1766719961255,0.2563992,2962.0,2961.8,0.001]
[1766719961831,1.6326992,2962.0,2961.8,0.001]
[1766719966134,1.3763,2962.0,2961.8,0.001]
[1766719966734,3.37593915,2962.2,2961.8,0.001]
[1766719966944,0.67517263,2962.1,2961.8,0.001]
[1766719967145,1.0104,2962.0,2961.5,0.001]
[1766719969234,1.0104,2961.9,2960.8,1.0109]
[1766719969445,1.0104,2961.7,2960.8,1.0109]
[1766719969847,1.0104,2961.7,2960.3,3.98341452]
[1766719970163,1.0104,2961.7,2960.4,1.0119]
[1766719970364,1.0104,2961.5,2960.7,0.03477579]
[1766719970534,0.77626577,2961.8,2961.0,1.0109]
[1766719970865,1.0104,2961.9,2961.2,1.0109]
[1766719971248,3.3763252,2961.8,2961.2,1.0109]
[1766719972049,4.3867252,2961.8,2961.2,1.0109]
[1766719974069,1.0104,2961.7,2960.8,0.885]
[1766719974367,1.44907252,2961.7,2960.9,1.0109]
[1766719974676,1.0104,2961.6,2960.7,1.0119]
[1766719976056,3.37666722,2961.5,2960.8,0.001]
[1766719976263,1.68572441,2961.4,2960.8,0.001]
[1766719976844,1.0104,2961.3,2960.8,0.001]
[1766719978367,3.37690627,2961.3,2960.8,0.001]
[1766719978676,1.0104,2961.2,2960.8,0.001]
[1766719979947,3.37682808,2961.4,2960.8,1.0119]
[1766719980264,0.77637895,2961.4,2960.8,1.0119]
[1766719981064,1.0104,2961.5,2960.8,1.0119]
[1766719981256,0.002,2961.8,2961.0,1.0109]
[1766719981257,1.0124,2961.8,2961.0,1.0109]
[1766719981647,0.002,2961.8,2961.0,1.0109]
[1766719981847,6.47,2962.1,2961.2,1.0109]
[1766719982148,4.38585206,2962.6,2961.4,1.0109]
[1766719982348,4.38585206,2962.6,2961.6,1.0109]
[1766719982548,4.38585206,2962.6,2961.8,1.0109]
[1766719982743,1.0104,2962.5,2961.3,1.0109]
[1766719982948,1.0104,2962.3,2961.4,0.885]
[1766719983177,1.0104,2962.3,2961.5,1.0109]
[1766719983780,1.0104,2962.3,2961.5,1.8959]
[1766719984347,3.37579112,2962.3,2961.5,1.8959]
[1766719984571,1.0104,2962.2,2961.5,1.0109]
[1766719984777,1.0104,2962.0,2961.3,0.885]
[1766719985974,1.0104,2962.0,2961.2,0.885]
[1766719986181,1.0104,2962.0,2960.9,1.0109]
[1766719986182,1.0104,2962.0,2961.1,0.885]
[1766719986347,1.0104,2961.8,2961.1,0.885]
[1766719987883,1.0104,2961.8,2961.0,0.885]
[1766719988053,1.0104,2961.7,2961.0,0.885]
[1766719988576,1.0104,2961.7,2960.9,1.0109]
[1766719988878,1.0104,2961.6,2960.8,0.001]
[1766719989862,1.0104,2961.6,2961.0,1.0109]
[1766719990878,1.0104,2961.6,2961.1,0.03377123]
[1766719991074,4.82586877,2961.6,2961.0,1.0109]
[1766719991279,1.44927756,2961.6,2961.0,1.0109]
[1766719991783,0.43887756,2961.6,2961.1,1.04467123]
[1766719991952,0.002,2961.8,2961.1,1.04467123]
[1766719992157,0.002,2961.8,2961.3,1.0109]
[1766719992459,0.002,2961.8,2961.3,1.04466895]
[1766719993159,1.0104,2961.7,2961.2,0.885]
[1766719993354,1.0104,2961.6,2961.2,0.885]
[1766719994073,0.9887,2961.8,2961.2,0.885]
[1766719994585,0.9887,2961.8,2961.1,1.82987123]
[1766719997484,0.9887,2961.8,2961.2,0.9111]
[1766719998294,4.36508405,2961.8,2961.2,0.9111]
[1766719998591,6.50955509,2961.8,2961.2,0.9111]
[1766719998989,3.13317104,2961.8,2961.2,0.9111]
[1766720000584,5.52282563,2961.8,2961.2,0.9111]
[1766720000890,0.9867,2961.7,2961.2,0.9111]
[1766720002806,0.9867,2961.6,2961.0,0.885]
[1766720002971,0.9867,2961.5,2961.0,0.885]
[1766720004094,0.9867,2961.5,2960.9,0.001]
[1766720004262,0.9867,2961.5,2960.9,0.03477351]
[1766720005069,0.9867,2961.5,2961.0,0.001]
[1766720005375,0.9867,2961.5,2961.0,0.9121]
[1766720005572,0.9867,2961.5,2961.1,0.03377123]
[1766720006298,0.9887,2961.8,2961.1,0.94487123]
[1766720011504,0.9887,2961.8,2961.1,4.32188116]
[1766720011703,0.002,2961.8,2961.3,0.9111]
[1766720011906,13.703512,2962.0,2961.5,0.9111]
[1766720012072,13.703512,2962.0,2961.6,0.03376553]
[1766720012599,0.9867,2961.9,2961.4,0.885]
[1766720012977,0.002,2961.8,2961.4,0.885]
[1766720013177,0.9887,2961.8,2961.4,0.885]
[1766720013396,0.9887,2961.8,2961.5,0.885]
[1766720014404,0.9887,2961.8,2961.0,0.52203328]
[1766720014580,0.9887,2961.8,2961.1,4.65214308]
[1766720015005,0.9887,2961.8,2961.1,3.76714308]
[1766720015188,0.9887,2961.8,2961.2,0.85291335]
[1766720017111,0.9887,2961.8,2961.2,4.22982872]
[1766720017525,0.002,2961.8,2961.3,0.94486895]
[1766720017860,0.002,2961.8,2961.4,1.42856977]
[1766720018122,0.002,2961.8,2961.5,0.03376667]
[1766720018803,0.002,2961.8,2961.5,0.94486667]
[1766720019322,13.703512,2962.0,2961.6,0.9111]
[1766720019515,13.703512,2962.0,2961.7,1.82986439]
[1766720020227,8.65260363,2962.0,2961.7,0.885]
[1766720020515,9.63930363,2962.0,2961.8,0.885]
[1766720025118,0.9073,2961.9,2961.8,0.885]
[1766720025313,0.9073,2961.9,2961.4,3.37669825]
[1766720025314,0.9073,2961.9,2961.4,3.37678125]
[1766720025519,0.9073,2961.9,2961.5,0.42617813]
[1766720026625,0.9093,2961.9,2961.5,0.42617813]
[1766720027540,0.9073,2961.8,2960.9,0.001]
[1766720027694,0.9073,2961.8,2960.7,3.37750725]
[1766720027901,7.63947785,2961.9,2960.8,0.03377465]
[1766720027902,0.9073,2961.6,2960.8,0.03377465]
[1766720028507,0.9073,2961.6,2960.8,3.41120763]
[1766720028746,0.9073,2961.6,2960.9,3.37733976]
[1766720028909,0.9073,2961.6,2961.0,0.03377237]
[1766720029314,0.9073,2961.6,2960.9,0.03377351]
[1766720029512,0.9073,2961.6,2961.0,0.34111844]
[1766720029933,0.9073,2961.6,2960.8,3.41116054]
[1766720030142,0.9073,2961.6,2960.8,0.03377465]
[1766720031234,0.9073,2961.6,2960.7,0.67552898]
[1766720031549,0.9073,2961.6,2960.6,13.670011]
[1766720032644,0.9073,2961.6,2960.6,11.667611]
[1766720032821,0.9073,2961.6,2960.7,0.03377579]
[1766720033135,0.9073,2961.6,2960.6,0.03377693]
[1766720033340,0.9073,2961.5,2960.6,10.157193]
[1766720033526,0.9073,2961.5,2960.6,5.15747019]
[1766720033729,0.9073,2961.5,2960.6,3.37768243]
[1766720036338,0.9073,2961.5,2960.6,6.75537614]
[1766720036939,0.9073,2961.5,2960.6,3.37768243]
[1766720037844,0.9073,2961.5,2960.5,6.75560411]
[1766720038065,0.9073,2961.5,2960.6,7.78118393]
[1766720038242,0.9073,2961.5,2960.7,1.4536788]
[1766720038443,0.9073,2961.5,2960.8,0.03377465]
[1766720038644,0.9073,2961.5,2960.6,0.03377693]
[1766720040865,0.9073,2961.5,2960.7,3.37757962]
[1766720041054,0.9073,2961.5,2960.8,0.03377465]
[1766720044072,0.9073,2961.5,2960.8,3.41118685]
[1766720044241,0.9073,2961.5,2960.9,0.67887665]
[1766720044778,0.002,2961.6,2961.0,0.03377237]
[1766720044947,0.002,2961.9,2961.1,19.930584]
[1766720045263,0.002,2961.9,2961.2,6.78778873]
[1766720045558,0.002,2961.9,2961.2,6.75401864]
[1766720045859,0.002,2961.9,2961.3,0.67540186]
[1766720046068,0.002,2961.9,2961.4,0.03376781]
[1766720046234,6.65460363,2962.0,2961.4,0.03376781]
[1766720046562,5.65460363,2962.0,2961.4,0.03376781]
[1766720046856,5.65460363,2962.0,2961.3,0.67540186]
[1766720047061,5.65460363,2962.0,2961.4,4.11970892]
[1766720047226,5.65460363,2962.0,2961.5,0.03376667]
[1766720048663,0.002,2961.6,2961.5,0.03376667]
[1766720049033,4.65460363,2962.0,2961.6,3.37655321]
[1766720049360,4.65460363,2962.0,2961.7,0.37479638]
[1766720049533,4.65460363,2962.0,2961.5,3.37661092]
[1766720049941,4.65460363,2962.0,2961.5,6.75327814]
[1766720050360,4.65460363,2962.0,2961.5,3.37661092]
[1766720052539,4.65460363,2962.0,2961.6,0.03376553]
[1766720052870,4.65460363,2962.0,2961.7,0.67870437]
[1766720053036,4.65460363,2962.0,2961.8,0.03376325]
[1766720053935,0.65460363,2962.0,2961.8,0.03376325]
[1766720055157,0.65660363,2962.0,2961.8,0.03376325]
[1766720055349,0.65660363,2962.0,2961.7,0.67870437]
[1766720055550,0.65660363,2962.0,2961.6,3.3764593]
[1766720056264,0.65660363,2962.0,2961.7,3.37640476]
[1766720056469,0.65660363,2962.0,2961.7,3.41016915]
[1766720056674,0.002,2963.1,2961.9,14.265292]
[1766720056872,0.002,2963.1,2962.1,3.98478164]
[1766720057040,0.002,2963.1,2962.2,0.03375869]
[1766720057772,0.002,2963.1,2961.9,27.612494]
[1766720057985,0.9024,2963.0,2961.9,27.612494]
[1766720059198,0.9024,2963.0,2962.0,6.75219446]
[1766720060487,0.9024,2963.0,2962.1,0.03375983]
[1766720060695,0.9024,2963.0,2962.2,0.67859543]
[1766720060987,0.9024,2963.0,2962.3,0.03375755]
[1766720062090,0.9024,2963.0,2962.3,3.40945693]
[1766720062398,0.002,2963.0,2962.3,3.40945693]
[1766720063490,0.9024,2963.0,2962.2,0.67859543]
[1766720063689,0.9024,2963.0,2962.1,3.37594565]
[1766720065122,0.9024,2963.0,2962.1,6.7519289]
[1766720065422,0.9024,2963.0,2962.1,3.37594565]
[1766720067284,3.37696846,2963.0,2962.1,0.03375983]
[1766720067510,0.9004,2962.8,2961.9,3.575396]
[1766720067713,1.07894,2962.7,2962.0,0.03376097]
[1766720069288,1.07894,2962.7,2962.1,0.03375983]
[1766720069582,1.07894,2962.7,2962.0,0.03376097]
[1766720071315,0.9004,2962.6,2961.5,0.001]
[1766720071624,0.9004,2962.4,2961.6,3.37649136]
[1766720071821,0.9004,2962.4,2961.7,3.37643624]
[1766720072335,4.26010899,2962.9,2961.8,0.03376325]
[1766720072336,0.9004,2962.6,2961.8,0.03376325]
[1766720072492,0.9004,2962.6,2961.8,3.37626949]
[1766720072692,0.9004,2962.6,2961.9,0.33762695]
[1766720073212,0.9004,2962.8,2961.9,0.33762695]
[1766720073409,0.9004,2962.8,2961.6,18.07631]
[1766720074133,0.9004,2962.8,2961.9,3.37619305]
[1766720074321,0.9004,2962.8,2961.8,3.37627245]
[1766720075026,0.9004,2962.7,2961.8,3.37627245]
[1766720075597,0.9004,2962.7,2961.9,3.37620015]
[1766720075793,0.9004,2962.7,2962.0,0.33762002]
[1766720075998,0.002,2963.0,2962.1,3.98478164]
[1766720076222,0.002,2963.0,2962.2,0.03375869]
[1766720076735,0.887,2963.5,2962.4,3.98478164]
[1766720076911,0.887,2963.5,2962.5,0.43223343]
[1766720077227,0.002,2963.0,2962.5,0.43223343]
[1766720077604,0.002,2963.0,2962.6,3.37541348]
[1766720077801,0.002,2963.0,2962.7,0.03375299]
[1766720078016,0.002,2963.0,2962.8,0.34091665]
[1766720078217,0.002,2963.0,2962.9,0.03375071]
[1766720079321,0.002,2963.9,2962.9,4.01360718]
[1766720079550,0.002,2963.9,2963.0,7.35472986]
[1766720079922,0.9004,2963.8,2962.8,4.32077312]
[1766720080122,0.9004,2963.8,2962.9,0.43207731]
[1766720080749,0.9004,2963.8,2962.9,3.80714489]
[1766720081155,0.9004,2963.8,2963.1,3.37484305]
[1766720081336,0.002,2963.9,2963.4,3.97985647]
[1766720081536,0.002,2964.0,2963.5,0.03374388]
[1766720081749,0.002,2964.0,2963.3,3.37460645]
[1766720081958,0.002,2964.0,2963.4,4.14359518]
[1766720082164,0.002,2964.2,2963.6,3.97985647]
[1766720082337,0.002,2964.2,2963.7,0.0337416]
[1766720083282,0.9267,2963.8,2962.0,17.987226]
[1766720083442,0.9267,2963.6,2962.3,30.0]
[1766720083642,0.9604416,2963.6,2962.6,3.97985647]
[1766720083844,0.9604416,2963.6,2962.7,0.03375299]
[1766720084162,0.9604416,2963.6,2962.7,0.43511394]
[1766720084642,0.0337416,2963.6,2962.8,3.97985647]
[1766720084841,0.0337416,2963.6,2962.9,0.03375071]
[1766720085070,0.9432,2963.5,2962.7,0.40136095]
[1766720085278,0.0337416,2963.4,2962.4,8.23949784]
[1766720085457,0.9432,2963.4,2962.4,8.23949784]
[1766720085777,0.9432,2963.4,2962.5,6.75095338]
[1766720085962,0.9432,2963.4,2962.5,3.37542596]
[1766720086166,0.9432,2963.4,2962.6,0.76350392]
[1766720086747,0.0337416,2963.6,2962.7,0.03375299]
[1766720086949,0.0337416,2963.6,2962.6,0.76350392]
[1766720088658,0.0337416,2963.6,2962.7,3.37529955]
[1766720089790,0.0337416,2963.6,2962.8,0.03375185]
[1766720090089,0.0337416,2963.6,2962.8,0.78854823]
[1766720090478,0.0337416,2963.6,2962.8,0.03375185]
[1766720090890,0.9432,2963.5,2962.7,3.37523653]
[1766720091390,0.9432,2963.5,2962.6,3.37535133]
[1766720091792,0.9769416,2963.4,2962.7,0.03375299]
[1766720092091,0.9769416,2963.4,2962.6,0.03375413]
[1766720092297,0.9769416,2963.4,2962.7,0.34092797]
[1766720092599,0.9769416,2963.4,2962.8,0.03375185]
[1766720092979,0.9769416,2963.4,2962.8,3.40893393]
[1766720093588,0.9769416,2963.4,2962.8,0.03375185]
[1766720094288,0.9769416,2963.4,2962.7,3.3752985]
[1766720094584,0.9769416,2963.4,2962.8,0.03375185]
[1766720095384,0.0337416,2963.4,2962.8,0.03375185]
[1766720095590,0.0337416,2963.5,2962.8,0.03375185]
[1766720096390,0.0337416,2963.5,2962.8,3.40891937]
[1766720096574,0.9769416,2963.5,2962.8,0.03375185]
[1766720098777,0.9769416,2963.5,2962.8,3.78389579]
[1766720099094,0.9769416,2963.5,2962.8,0.40875019]
[1766720100966,0.9769416,2963.5,2962.8,3.7839241]
[1766720101605,0.002,2964.0,2963.0,18.555328]
[1766720101766,0.002,2964.0,2962.9,0.91775071]
[1766720101767,0.002,2963.5,2963.1,0.03374843]
[1766720101966,0.002,2964.0,2963.1,0.03374843]
[1766720101967,0.002,2964.0,2963.2,23.473937]
[1766720102163,0.002,2964.0,2963.3,2.3845147]
[1766720102472,0.002,2964.0,2963.3,0.03374616]
[1766720102777,0.002,2964.0,2963.2,15.643755]
[1766720102979,0.002,2964.0,2963.3,0.03374616]
[1766720103192,0.002,2964.0,2963.4,0.03374502]
[1766720103508,0.002,2964.0,2963.3,30.0]
[1766720103714,0.002,2964.2,2963.4,3.92111975]
[1766720103912,0.9452,2964.8,2963.6,20.639024]
[1766720104082,0.002,2964.8,2963.8,30.0]
[1766720104280,0.002,2964.8,2963.9,0.91773932]
[1766720104490,0.002,2964.8,2964.0,22.032566]
[1766720104703,0.002,2964.8,2964.2,3.37359152]
[1766720105006,0.002,2964.8,2964.3,0.03373477]
[1766720106708,0.002,2964.8,2964.3,3.40719437]
[1766720107012,0.002,2964.8,2964.3,3.3734596]
[1766720108612,0.002,2965.2,2964.4,0.03373363]
[1766720108818,0.002,2965.2,2964.5,0.34071932]
[1766720109113,0.002,2965.2,2964.6,0.03373136]
[1766720109314,0.9432,2965.1,2964.0,21.061136]
[1766720109614,0.9432,2964.9,2963.7,3.3740708]
[1766720109815,0.9432,2964.7,2963.7,4.2885539]
[1766720110116,0.9769416,2964.6,2963.8,3.37404626]
[1766720111698,0.9432,2965.0,2963.9,0.884]
[1766720111894,0.9432,2964.8,2963.8,3.37404626]
[1766720112221,0.9432,2964.8,2963.9,0.03373932]
[1766720113519,0.9432,2964.8,2963.9,3.40762591]
[1766720113724,0.9432,2964.8,2963.9,0.03373932]
[1766720113925,1.33639823,2964.8,2963.9,4.17423451]
[1766720114084,0.9432,2964.8,2963.9,4.17423451]
[1766720114504,0.9432,2964.8,2963.9,8.1502705]
[1766720114704,4.29636753,2965.1,2963.9,8.11653118]
[1766720115091,4.26431119,2965.1,2963.9,8.11653118]
[1766720115726,0.002,2964.8,2963.9,8.11653118]
[1766720115927,0.002,2964.8,2964.0,1.14905597]
[1766720116318,0.9258,2965.2,2964.3,3.97603599]